[Event "German Bundesliga 2021-22"]
[Site "Germany"]
[Date "2022.05.01"]
[Round "6.8"]
[White "Loxine, Jakov"]
[Black "Rafiee, Makan"]
[Result "1-0"]
[ECO "D02"]
[WhiteElo "2390"]
[BlackElo "2338"]
[Annotator "TA"]
[PlyCount "115"]
[EventDate "2022.03.05"]
[EventType "team-tourn"]
[EventCountry "GER"]
[SourceTitle "playchess.com"]
[Source "ChessBase"]
[SourceQuality "1"]
[TimeControl "40/5400+30:1800+30"]

{[%evp 9,115,29,40,24,19,22,27,17,21,13,20,8,22,2,5,14,22,9,23,-10,-13,-17,0,-16,0,0,18,3,28,15,32,0,0,-25,-21,-22,-12,-17,-10,-19,0,0,0,3,11,1,14,13,56,45,58,64,56,30,59,33,340,317,423,422,438,159,157,161,160,157,224,216,250,223,214,133,126,81,137,84,77,79,79,0,0,0,97,0,107,106,890,1113,1314,1266,1231,1212,29972,29973,29973,29975,29974,29975,29980,29981,29986,29987,29988,29989,29989,29981,29981,29982]} 1. Nf3 {[%emt 0:00:00]} d5 {[%emt 0:00:00]} 2. g3 {[%emt 0:00:00]} Nd7 {[%emt 0:00:00]} 3. d4 {[%emt 0:00:00]} Nb6 {[%emt 0:00:00]} 4. Bg2 {[%emt 0:00:00]} Bf5 {[%emt 0:00:00]} 5. O-O {[%emt 0:00:00]} e6 {[%emt 0:00:00]} 6. Nbd2 {[%emt 0:00:00] D02: 1 d4 d5 2 Nf3 sidelines, including 2...Nf6 3 g3 and 2...Nf6 3 Bf4.} Be7 {[%emt 0:00:00]} 7. b3 {[%emt 0:00:00]} Nf6 {[%emt 0:00:00][%cal Bg8f6,Bf6e4,Be4d2][%mdl 32]} 8. Bb2 {[%emt 0:00:00] White has an edge.} O-O {[%emt 0:00:00]} 9. c4 {[%emt 0:06:18]} Ne4 {[%emt 0:08:50]} 10. Rc1 {[%emt 0:04:27]} c6 {[%emt 0:01:04]} 11. Ne5 {[%emt 0:03:50]} Nxd2 {[%emt 0:22:11]} 12. Qxd2 {[%emt 0:00:05] [#]} h6 $146 {[%emt 0:00:51]} ({Predecessor:} 12... Nd7 13. Nd3 a5 14. Rfd1 Qb6 15. e3 Rfd8 16. c5 Qc7 17. Bc3 Bxd3 18. Qxd3 b6 19. cxb6 Qxb6 {½-½ (27) Moranda,W (2588)-Jaracz,P (2508) Poland 2015}) 13. f3 {[%emt 0:33:14]} a5 {[%emt 0:04:16]} 14. c5 {[%emt 0:00:26]} Nd7 {[%emt 0:00:06]} 15. Nd3 {[%emt 0:00:35]} Bh7 {[%emt 0:19:29]} 16. Rc2 {[%emt 0:05:21]} Qb8 {[%emt 0:04:45]} 17. e4 {[%emt 0:00:37]} Rd8 {[%emt 0:01:13]} 18. Qe3 {[%emt 0:00:35]} Bf8 {[%emt 0:03:28]} 19. Rfc1 {[%emt 0:06:16]} Qa7 {[%emt 0:01:42]} 20. e5 {[%emt 0:02:29]} Rdc8 {[%emt 0:02:29]} 21. Bf1 {[%emt 0:03:20]} b6 {[%emt 0:05:30]} 22. Ba3 {[%emt 0:05:55]} bxc5 {[%emt 0:01:05]} 23. dxc5 {[%emt 0:00:33]} Rcb8 {[%emt 0:01:01]} 24. f4 {[%emt 0:01:10]} Be4 {[%emt 0:06:23]} 25. Rc3 {[%emt 0:03:45]} Be7 {[%emt 0:05:59]} 26. Nf2 {[%emt 0:00:30]} Bh7 {[%emt 0:00:26][%cal Ob8b4]} 27. Bd3 {[%emt 0:03:04]} Bxd3 {[%emt 0:01:16]} 28. Nxd3 {[%emt 0:00:06]} Rd8 {[%emt 0:04:03]} 29. R3c2 {[%emt 0:01:19]} Nb8 {[%emt 0:00:56]} 30. g4 {[%emt 0:10:53]} Na6 {[%emt 0:01:04]} 31. Rf1 {[%emt 0:00:38]} Rab8 {[%emt 0:02:38]} 32. f5 {[%emt 0:00:33][%cal Bf4f5,Bf5f6][%mdl 32] Hoping for f6.} Nb4 $2 {[%emt 0:01:30][%mdl 8192]} (32... Bg5 $14 33. Qd4 Qb7) 33. Bxb4 $18 axb4 34. f6 $1 {[%emt 0:01:01]} Bf8 {[%emt 0:00:08]} 35. g5 $2 {[%emt 0:01:06]} (35. fxg7 $18 {and the rest is easy.} Bxg7 36. g5) 35... g6 $16 {[%emt 0:00:33]} 36. gxh6 {[%emt 0:00:13][%cal Oh6h7] Black must now prevent h7+!} Kh7 {[%emt 0:00:26]} 37. Qd4 {[%emt 0:00:24] White is much more active.} Bxh6 {[%emt 0:01:54]} (37... Rb5 $16 {keeps fighting.} 38. Rff2 Rdb8) 38. Rf3 $1 $18 {[%emt 0:01:38] Rh3 would kill now.} (38. Nxb4 $6 Qb7 39. Nd3 Rh8) 38... Rh8 {[%emt 0:00:20]} 39. Rh3 {[%emt 0:00:08][%cal Oh3h6]} Kg8 {[%emt 0:00:16]} 40. Kg2 {[%emt 0:04:20]} Qa5 {[%emt 0:03:49]} 41. Rf2 {[%emt 0:09:42]} Qa3 {[%emt 0:00:07]} (41... Bg5 $142) 42. Rh4 {[%emt 0:03:02]} (42. Qh4 $142) 42... Bg5 {[%emt 0:04:57]} 43. Rg4 $36 {[%emt 0:02:51][%mdl 2048] White is on the roll.} Rh5 {[%emt 0:00:07]} 44. Nf4 {[%emt 0:11:21]} ({Of course not} 44. Nxb4 Be3 45. Qxe3 Rxb4 46. Rxb4 Qxb4 $11) (44. Rc2 $16) 44... Bxf4 $11 {[%emt 0:00:11]} 45. Qxf4 {[%emt 0:00:04]} Ra8 {[%emt 0:08:43]} (45... Qa7 $11 {keeps the balance.}) 46. Rg5 {[%emt 0:01:48]} ({Better is} 46. Qg3 $16 {[%cal Og4g6] Intending Rxg6+! and mate.} Rh6 47. Rc2) 46... Rh6 {[%emt 0:01:25]} (46... Kh7 $1 $11 {remains equal.}) 47. h4 $16 {[%emt 0:00:10][%cal Bh2h4,Bh4h5][%mdl 32] aiming for h5!} Kh7 $2 {[%emt 0:06:04][%mdl 8192]} (47... Qa6 $16) 48. h5 $1 $18 {[%emt 0:00:10] hxg6+ is the strong threat.} Rg8 {[%emt 0:00:20] [#]} 49. Kf3 $1 {[%emt 0:00:10][%cal Bg2f3,Bf3e3,Be3e4][%mdl 32] Threatening mate with Rh2.} (49. hxg6+ Rgxg6 50. Rxg6 Rxg6+ 51. Kf3 Kg8 $18) 49... Qa6 {[%emt 0:00:20] [#]} 50. Ke3 $1 {[%emt 0:00:40]} ({Avoid the trap} 50. hxg6+ $2 Rgxg6 51. Re2 Qd3+ 52. Kf2 Rh1 53. Rxg6 Qxg6 $19) 50... d4+ {[%emt 0:11:01]} 51. Ke4 {[%emt 0:00:10] White mates.} Qc8 {[%emt 0:02:22]} 52. Rh2 {[%emt 0:01:23]} Qf8 {[%emt 0:00:13]} 53. hxg6+ {[%emt 0:05:51]} fxg6 {[%emt 0:00:21]} 54. f7 {[%emt 0:00:23]} Rh8 {[%emt 0:00:12]} 55. Rgg2 {[%emt 0:00:51]} Rh5 {[%emt 0:01:13]} 56. Rxh5+ {[%emt 0:01:34]} gxh5 {[%emt 0:00:04]} 57. Rg5 {[%emt 0:00:28]} Qh6 {[%emt 0:01:03]} 58. Qh4 {[%emt 0:00:16] Weighted Error Value: White=0.20 (precise) /Black=0.40} 1-0

[Event "German Bundesliga 2021-22"]
[Site "Germany"]
[Date "2022.05.01"]
[Round "6.8"]
[White "Meissner, Felix"]
[Black "Predojevic, Borki"]
[Result "0-1"]
[ECO "B47"]
[WhiteElo "2381"]
[BlackElo "2585"]
[Annotator "TA"]
[PlyCount "78"]
[EventDate "2022.03.05"]
[EventType "team-tourn"]
[EventCountry "GER"]
[SourceTitle "playchess.com"]
[Source "ChessBase"]
[SourceQuality "1"]
[TimeControl "40/5400+30:1800+30"]

{[%evp 12,78,20,18,12,-4,0,-21,-19,-18,0,0,0,0,0,-16,-21,-71,-56,-91,-91,-108,-82,-94,-71,-77,-60,-74,-52,-108,-102,-147,-113,-229,-231,-345,-334,-468,-449,-452,-457,-484,-470,-506,-410,-450,-458,-468,-450,-489,-487,-489,-508,-500,-476,-605,-558,-570,-537,-561,-559,-644,-621,-964,-942,-1221,-1254,-1266,-1133]} 1. e4 {[%emt 0:00:00]} c5 {[%emt 0:00:00]} 2. Nf3 {[%emt 0:00:00]} e6 {[%emt 0:00:00]} 3. d4 {[%emt 0:00:00]} cxd4 {[%emt 0:00:00]} 4. Nxd4 {[%emt 0:00:00]} Nc6 {[%emt 0:00:00]} 5. Nc3 {[%emt 0:00:00]} Qc7 {[%emt 0:00:00]} 6. g3 {[%emt 0:00:00]} a6 {[%emt 0:00:00]} 7. a4 {[%emt 0:00:00]} Nf6 {[%emt 0:00:00] B47: Sicilian: Taimanov: 5 Nc3 Qc7 6 f4, 6 g3 and 6 Be2.} 8. Nxc6 {[%emt 0:02:46]} bxc6 {[%emt 0:01:40]} 9. Bg2 {[%emt 0:01:21]} a5 {[%emt 0:11:05] The position is equal.} 10. O-O {[%emt 0:00:15][%cal Oe4e5] [#]} Ba6 $146 {[%emt 0:02:44]} ({Predecessor:} 10... Be7 11. Re1 e5 12. Qf3 h6 13. Nd1 O-O 14. Ne3 d5 15. exd5 e4 16. Qd1 Rd8 17. c4 Bb7 18. Bd2 cxd5 19. cxd5 Bc5 20. Qc2 Rxd5 21. Bc3 Bxe3 {½-½ (21) Obukhov,G (1896)-Kroes,F (1675) LSS email 2011}) 11. Re1 {[%emt 0:00:07]} e5 {[%emt 0:00:06]} 12. b3 {[%emt 0:09:38]} Bb4 {[%emt 0:11:58]} 13. Bd2 {[%emt 0:01:35]} O-O {[%emt 0:03:20]} 14. g4 {[%emt 0:05:43]} (14. Qc1 $11) 14... d6 $17 {[%emt 0:13:40] Black is more active.} 15. g5 {[%emt 0:02:43]} Nd7 {[%emt 0:00:12][%cal Bf6d7,Bd7c5,Bc5e6,Be6f4][%mdl 32]} 16. Re3 {[%emt 0:04:27]} Nc5 {[%emt 0:10:42]} 17. Qh5 {[%emt 0:04:56]} f6 {[%emt 0:02:20] And now ...fxg5 would win.} 18. g6 {[%emt 0:05:09]} ({Much weaker is} 18. Rh3 g6 19. Qh4 fxg5 20. Bxg5 Ne6 $17) 18... hxg6 {[%emt 0:00:08]} 19. Qxg6 {[%emt 0:00:32]} Qf7 {[%emt 0:00:48]} 20. Qg3 {[%emt 0:05:16] Black keeps a firm grip on the game.} (20. Qg4 $15) 20... Ne6 {[%emt 0:08:16]} 21. Bh3 {[%emt 0:05:33]} Nf4 $36 {[%emt 0:04:14][%mdl 2048] Black is on the roll.} 22. Rae1 {[%emt 0:02:26]} (22. Bf5 $17) 22... d5 $19 {[%emt 0:17:21][%cal Bd6d5,Bd5d4][%mdl 32]} 23. Rf3 {[%emt 0:09:43]} (23. exd5 $142 cxd5 24. Rf3) 23... d4 {[%emt 0:03:16]} 24. Bf5 {[%emt 0:03:16]} (24. Nb1 $142 Ne2+ 25. Rxe2 Bxe2 26. Bf5) 24... Bxc3 {[%emt 0:04:03]} 25. Bxf4 {[%emt 0:10:59]} exf4 {[%emt 0:02:28]} ({Worse is} 25... Bxe1 26. Bg6 exf4 27. Bxf7+ Rxf7 28. Qh4 $17) 26. Qh3 {[%emt 0:03:17][%csl Gf5][%cal Rh3h7] [#]} Rfe8 $1 {[%emt 0:00:11][%cal Bf8e8,Be8e5,Be5c5][%mdl 32]} 27. Rd1 {[%emt 0:10:06]} Rad8 {[%emt 0:01:21]} 28. Qh7+ {[%emt 0:04:30]} Kf8 {[%emt 0:00:05][%cal Bg8f8,Bf8e7,Be7d7,Bd7c7][%mdl 32] Black is clearly winning.} 29. Bg6 {[%emt 0:02:54]} Qg8 {[%emt 0:00:58]} 30. Qh4 {[%emt 0:01:21]} Re5 {[%emt 0:01:11]} ({Avoid the trap} 30... Be2 $2 31. Rxf4 d3 32. Rxd3 Bxd3 33. cxd3) 31. Qxf4 {[%emt 0:02:37]} Ke7 {[%emt 0:00:15] [#] Strongly threatening ...Be2.} 32. Rg3 {[%emt 0:01:50]} Be2 {[%emt 0:01:17]} 33. Rd2 {[%emt 0:02:23]} Bxd2 {[%emt 0:01:12]} 34. Qxd2 {[%emt 0:00:01]} Ba6 {[%emt 0:00:14]} 35. f4 {[%emt 0:00:42]} Rc5 {[%emt 0:00:26][%cal Oc5c3]} 36. Qc1 {[%emt 0:01:10]} Kd7 {[%emt 0:01:16]} 37. Qa3 {[%emt 0:00:17]} Qf8 {[%emt 0:00:10]} 38. Qb2 {[%emt 0:01:15]} Kc7 {[%emt 0:00:36] aiming for ...d3.} 39. b4 {[%emt 0:00:05]} axb4 {[%emt 0:00:43] Weighted Error Value: White=0.52/Black=0.06 (flawless)} 0-1

[Event "German Bundesliga 2021-22"]
[Site "Germany"]
[Date "2022.05.01"]
[Round "6.9"]
[White "Mamedyarov, Shakhriyar"]
[Black "Khenkin, Igor"]
[Result "1/2-1/2"]
[ECO "A20"]
[WhiteElo "2767"]
[BlackElo "2509"]
[Annotator "TA"]
[PlyCount "89"]
[EventDate "2022.03.05"]
[EventType "team-tourn"]
[EventCountry "GER"]
[SourceTitle "playchess.com"]
[Source "ChessBase"]
[SourceQuality "1"]
[TimeControl "40/5400+30:1800+30"]

{[%evp 9,89,8,22,17,24,23,13,-5,-4,-8,-3,-18,-19,-5,-7,-7,-29,-21,13,-15,-22,-21,-20,-27,-30,-24,-30,-39,-30,-29,-22,-23,-18,-50,-50,-30,-45,-35,0,-69,0,-68,-66,-68,-68,-68,-79,-121,-64,-64,-62,-62,-62,-68,-88,-47,-29,-45,0,0,0,0,0,0,0,0,0,0,0,0,0,0,11,11,20,20,104,104,104,104,104,104]} 1. c4 {[%emt 0:00:00]} e5 {[%emt 0:00:00]} 2. g3 {[%emt 0:00:00]} c6 {[%emt 0:00:00]} 3. d4 {[%emt 0:00:00]} e4 {[%emt 0:00:00]} 4. Qa4 {[%emt 0:00:00]} Na6 {[%emt 0:05:47][%cal Bb8a6,Ba6c7,Bc7d5,Bd5c3][%mdl 32]} 5. a3 {[%emt 0:00:00]} Nc7 {[%emt 0:03:26]} 6. Nc3 {[%emt 0:00:00] A20: English Opening: 1...e5.} f5 {[%emt 0:02:40]} 7. f3 {[%emt 0:01:45]} Nf6 {[%emt 0:10:42] [#]} 8. Bg2 $146 {[%emt 0:08:48][%cal Rf3e4] The position is equal.} ({Predecessor:} 8. fxe4 fxe4 9. Bg2 d5 10. cxd5 b5 11. Qb3 cxd5 12. Nh3 a5 13. Bg5 a4 14. Qa2 {½-½ (71) Timofeev,A-Muljadi,P (2322) ICCF email 2017}) 8... d5 {[%emt 0:02:17]} 9. cxd5 {[%emt 0:01:12]} (9. Nxd5 {feels hotter.} Ncxd5 10. cxd5 Qxd5 11. Bg5) 9... Ncxd5 {[%emt 0:00:29]} 10. fxe4 {[%emt 0:06:55]} Nxc3 {[%emt 0:04:07]} 11. bxc3 {[%emt 0:00:08]} Nxe4 {[%emt 0:00:03]} 12. Qc2 {[%emt 0:00:03]} Qa5 {[%emt 0:05:02]} 13. Bb2 {[%emt 0:00:42]} Be6 {[%emt 0:10:27]} ({Resist} 13... Qd5 14. Nh3 $14) 14. Nh3 {[%emt 0:08:23][%cal Bg1h3,Bh3g5,Bg5f3,Bf3e5][%mdl 32]} O-O-O {[%emt 0:10:37]} 15. O-O {[%emt 0:03:16]} Bc4 {[%emt 0:01:58]} 16. Ng5 {[%emt 0:03:41][%cal Of1f5] [#] aiming for Rxf5!} Nd6 {[%emt 0:08:38]} ({But not} 16... Nxg5 17. Rxf5 Qa6 18. Rxg5 $14) 17. Nf3 {[%emt 0:00:10]} g6 {[%emt 0:02:26]} 18. Ne5 {[%emt 0:09:08]} Bh6 {[%emt 0:02:20]} 19. Bc1 {[%emt 0:06:44]} Bxc1 {[%emt 0:00:06]} 20. Rfxc1 {[%emt 0:00:03]} Rhe8 {[%emt 0:01:04]} 21. Rab1 {[%emt 0:06:13]} Rxe5 {[%emt 0:08:55]} ({Much worse is} 21... Qxa3 22. Ra1 Qb3 23. Qxb3 Bxb3 24. Rxa7 $11) 22. dxe5 {[%emt 0:00:16]} Qxe5 {[%emt 0:00:02] And now ...Qe3+ would win.} 23. Rd1 {[%emt 0:00:39]} Bxe2 {[%emt 0:06:25]} 24. Re1 {[%emt 0:02:54]} (24. Rd4 $11) 24... Qc5+ $15 {[%emt 0:00:02]} 25. Kh1 {[%emt 0:00:03]} Bc4 {[%emt 0:00:19] ...Ne4 is the strong threat.} 26. Rbd1 {[%emt 0:01:09]} Ne4 {[%emt 0:08:42]} 27. Rxd8+ {[%emt 0:03:22]} Kxd8 {[%emt 0:00:02]} 28. Qd1+ {[%emt 0:00:18] [#]} Bd5 {[%emt 0:01:58]} (28... Kc7 $1 $17 {( -> ...Nf2+)} 29. Bxe4 fxe4) 29. Bxe4 {[%emt 0:02:08]} fxe4 {[%emt 0:00:01]} 30. Qd4 {[%emt 0:00:05]} Qxd4 {[%emt 0:01:46]} 31. cxd4 {[%emt 0:00:09][%mdl 4096] Endgame KR-KB} b5 {[%emt 0:00:58]} 32. Kg1 {[%emt 0:00:17]} a5 {[%emt 0:00:30]} 33. Rb1 {[%emt 0:00:28]} Bc4 {[%emt 0:02:08] Hoping for ...e3.} 34. Kf2 {[%emt 0:00:21]} Bd3 {[%emt 0:01:01]} 35. Rc1 {[%emt 0:10:02]} Kd7 {[%emt 0:00:04] Threatens to win with ...b4.} 36. Ke3 {[%emt 0:00:03][%cal Oa3a4]} b4 {[%emt 0:01:46]} 37. axb4 {[%emt 0:00:15]} axb4 {[%emt 0:00:01] Strongly threatening ...b3.} 38. Kd2 {[%emt 0:00:03]} b3 {[%emt 0:01:10]} 39. Kc3 {[%emt 0:00:06]} Bc2 {[%emt 0:00:03]} 40. Ra1 {[%emt 0:00:05]} Kd6 {[%emt 0:01:53]} 41. Ra5 {[%emt 0:30:20]} h5 {[%emt 0:00:00]} 42. Re5 {[%emt 0:00:00]} e3 {[%emt 0:00:00]} (42... Kd7 $11 {remains equal.}) 43. Rxe3 $16 {[%emt 0:00:00] White is better.} c5 {[%emt 0:00:00]} 44. dxc5+ {[%emt 0:00:00]} Kxc5 {[%emt 0:00:00]} 45. Re5+ {[%emt 0:00:00] Weighted Error Value: White=0.09 (flawless) /Black=0.10 (very precise)} 1/2-1/2

[Event "German Bundesliga 2021-22"]
[Site "Germany"]
[Date "2022.05.01"]
[Round "6.9"]
[White "Jones, Gawain C B"]
[Black "Postny, Evgeny"]
[Result "1-0"]
[ECO "C45"]
[WhiteElo "2671"]
[BlackElo "2567"]
[Annotator "TA"]
[PlyCount "61"]
[EventDate "2022.03.05"]
[EventType "team-tourn"]
[EventCountry "GER"]
[SourceTitle "playchess.com"]
[Source "ChessBase"]
[SourceQuality "1"]
[TimeControl "40/5400+30:1800+30"]

{[%evp 11,61,0,15,7,16,31,70,65,52,54,56,47,61,43,49,25,95,55,58,36,57,23,43,36,23,31,57,37,101,88,105,66,71,31,167,158,312,295,277,287,395,368,835,652,1251,1171,1919,1796,2246,1335,1441,835]} 1. e4 {[%emt 0:00:00]} e5 {[%emt 0:00:00]} 2. Nf3 {[%emt 0:00:00]} Nc6 {[%emt 0:00:00]} 3. d4 {[%emt 0:00:00]} exd4 {[%emt 0:00:00]} 4. Nxd4 {[%emt 0:00:00]} Bc5 {[%emt 0:00:00]} 5. Nb3 {[%emt 0:00:00]} Bb6 {[%emt 0:00:00]} 6. Nc3 {[%emt 0:00:00]} Nge7 {[%emt 0:00:00]} 7. Bf4 {[%emt 0:00:00] C45: Scotch Game.} d6 {[%emt 0:08:52]} 8. Qd2 {[%emt 0:00:00]} a5 {[%emt 0:02:38]} 9. Bb5 {[%emt 0:04:45] White is slightly better.} O-O {[%emt 0:01:28]} 10. O-O-O {[%emt 0:01:54]} Be6 {[%emt 0:04:45] [#]} 11. Be3 $5 $146 {[%emt 0:04:14][%mdl 8] An interesting novelty.} ({Predecessor:} 11. Kb1 Qb8 12. h4 Qa7 13. h5 Rad8 14. h6 g6 15. Bg3 f6 16. Rhe1 Ne5 17. Na4 {1-0 (33) Vallejo Pons,F (2678)-Delorme,A (2489) Linares 2019}) 11... Bxe3 {[%emt 0:03:24]} 12. Qxe3 {[%emt 0:00:18]} Na7 {[%emt 0:21:17]} 13. Be2 {[%emt 0:08:27]} Nac6 {[%emt 0:00:34]} (13... b5 $11 {keeps the balance.}) 14. f4 {[%emt 0:08:32] White is more active.} a4 {[%emt 0:00:53][%cal Ba5a4,Ba4a3,Ba3b2][%mdl 32] [#]} 15. Nc5 {[%emt 0:00:58]} a3 {[%emt 0:03:33]} 16. Nxe6 {[%emt 0:10:48]} axb2+ {[%emt 0:00:10]} 17. Kb1 {[%emt 0:00:04]} fxe6 {[%emt 0:00:07]} 18. Bc4 $1 $36 {[%emt 0:00:12][%mdl 2048] White has the initiative.} Kh8 {[%emt 0:08:33]} 19. Bxe6 {[%emt 0:02:12]} (19. Kxb2 e5 20. g3 exf4 21. gxf4 Ng6 $15) 19... Ra5 {[%emt 0:07:22]} (19... Nb4 $14) 20. h4 $16 {[%emt 0:06:05][%cal Bh2h4,Bh4h5][%mdl 32]} (20. Kxb2 Nb8) 20... b5 {[%emt 0:04:24]} 21. Bb3 {[%emt 0:10:27]} ({But not} 21. Kxb2 b4 22. Ne2 Qa8 $11) 21... b4 {[%emt 0:00:46]} 22. Ne2 {[%emt 0:06:51][%cal Bc3e2,Be2f4,Bf4g6][%mdl 32]} (22. Nd5 $5 {[%cal Rg2g3]}) 22... Qe8 {[%emt 0:08:13] [#] This costs Black the game.} (22... Ra3 $14) 23. g4 $1 $18 {[%emt 0:03:33]} Rc5 $2 {[%emt 0:04:57] [#]} (23... Qa8 $16) 24. h5 $1 {[%emt 0:02:29]} ({Less strong is} 24. e5 Ng8 $14) 24... h6 {[%emt 0:00:26]} (24... Qa8 25. h6 g6 26. Kxb2 $18) 25. g5 {[%emt 0:06:38]} (25. e5 Ng8 $14) 25... hxg5 {[%emt 0:03:27]} 26. fxg5 {[%emt 0:00:16][%cal Bf4g5,Bg5g6][%mdl 32] Threatens to win with Nf4.} Na5 $2 {[%emt 0:08:21]} (26... Nf5 27. Qd3 Ne5) 27. Nf4 {[%emt 0:02:09] White is clearly winning.} ({Not} 27. h6 g6 $16) 27... Nxb3 {[%emt 0:02:35]} 28. Ng6+ {[%emt 0:00:29]} Kh7 {[%emt 0:02:09]} 29. Nxf8+ {[%emt 0:00:17]} Qxf8 {[%emt 0:00:03]} 30. g6+ {[%emt 0:00:26]} Kh8 {[%emt 0:00:06]} 31. Qxb3 {[%emt 0:06:14] Weighted Error Value: White=0.05 (flawless) /Black=0.46} 1-0

[Event "German Bundesliga 2021-22"]
[Site "Germany"]
[Date "2022.05.01"]
[Round "6.9"]
[White "Seel, Christian"]
[Black "Shevchenko, Kirill"]
[Result "1/2-1/2"]
[ECO "A30"]
[WhiteElo "2486"]
[BlackElo "2652"]
[Annotator "TA"]
[PlyCount "67"]
[EventDate "2022.03.05"]
[EventType "team-tourn"]
[EventCountry "GER"]
[SourceTitle "playchess.com"]
[Source "ChessBase"]
[SourceQuality "1"]
[TimeControl "40/5400+30:1800+30"]

{[%evp 24,67,42,42,56,33,124,110,122,125,95,10,190,206,180,91,140,122,130,134,284,270,512,502,471,293,319,264,379,306,291,307,300,303,306,284,291,0,0,0,0,0,8,0,0,0]} 1. Nf3 {[%emt 0:00:00]} Nf6 {[%emt 0:00:00]} 2. c4 {[%emt 0:00:00]} c5 {[%emt 0:00:00]} 3. Nc3 {[%emt 0:00:00]} e6 {[%emt 0:00:00]} 4. g3 {[%emt 0:00:00]} b6 {[%emt 0:00:00]} 5. Bg2 {[%emt 0:00:00]} Bb7 {[%emt 0:00:00]} 6. O-O {[%emt 0:00:00]} Be7 {[%emt 0:00:00]} 7. Re1 {[%emt 0:00:00]} a6 {[%emt 0:00:00]} 8. e4 {[%emt 0:00:00]} d6 {[%emt 0:00:00]} 9. d4 {[%emt 0:00:00]} cxd4 {[%emt 0:00:00]} 10. Nxd4 {[%emt 0:00:00]} Qc7 {[%emt 0:00:00]} 11. Be3 {[%emt 0:00:00]} Nbd7 {[%emt 0:00:00]} 12. Rc1 {[%emt 0:00:00] 12.Rc1 scores better than 12.f4.} O-O {[%emt 0:00:00]} 13. f4 {[%emt 0:00:00]} h5 {[%emt 0:00:32] A30: Symmetrical English: Double Fianchetto and Hedgehog.} 14. Bh3 {[%emt 0:06:27][%cal Od4e6] Prevents Ng4.} Nc5 {[%emt 0:33:47]} ({Black should try} 14... Qd8 $14) 15. b4 $1 $16 {[%emt 0:04:20]} Ncxe4 {[%emt 0:03:42] [#] White is better.} 16. Nxe6 $1 {[%emt 0:02:16][%mdl 512]} Qxc4 {[%emt 0:13:32] [#]} (16... fxe6 $2 17. Bxe6+ Kh7 18. Nd5 Bxd5 19. cxd5 $18 (19. Bxd5 g6 $16)) 17. Nb1 $146 {[%emt 0:21:40]} (17. Nxf8 Nxc3 18. Qd2 (18. Nd7 $2 Qe4 $19) 18... Qe4 $1 $17) (17. Na4 $16 Qxb4 18. Nxf8 Bxf8 19. Nxb6) ({Predecessor:} 17. Na4 Qxb4 18. Nxf8 Ng5 19. Bg2 Nh3+ 20. Kf1 Qb5+ 21. Re2 Ng4 22. Bg1 Nxg1 23. Kxg1 Bxg2 24. Rxe7 {1-0 (31) Oliva Castaneda,K (2419)-Aroshidze,L (2565) Sitges 2014}) 17... Nc3 $2 {[%emt 0:07:02]} 18. Nxc3 $18 {[%emt 0:00:34]} (18. Nxf8 $2 Qe4 $1 19. Nxc3 Qh1+ 20. Kf2 Qxh2+ 21. Kf1 Qxg3 $19) 18... fxe6 {[%emt 0:00:12]} 19. Qe2 {[%emt 0:33:48] Against Ng4} (19. Bd4 $18 Bf3 20. Qxf3 (20. Bxe6+ Qxe6 21. Qxf3 Qf7 $16) 20... Qxd4+ 21. Kh1) 19... d5 {[%emt 0:16:58]} (19... Qc6 $2 20. Bxe6+ Kh8 {[#]} 21. Nd5 $1 $18 {[%mdl 512]}) (19... Qxb4 $142 20. Bxe6+ Kh8) 20. Bxe6+ $16 {[%emt 0:02:02]} Kh8 {[%emt 0:02:52]} 21. a3 $36 {[%emt 0:01:37][%mdl 2048] Strongly threatening Qd1. Keeping Black busy. White is more active.} (21. Bxb6 Bxb4 22. Qb2 (22. Qxc4 dxc4 23. Re5 Rfe8 $14) 22... Bc5+ 23. Bxc5 Qxc5+ 24. Kf1 Qa7 $14) (21. Qxc4 dxc4 22. Bxb6 Bxb4 $14) 21... a5 {[%emt 0:05:23]} (21... Qxe2 $16 22. Nxe2 (22. Rxe2 a5 $16) 22... Rfe8) 22. Qd1 $18 {[%emt 0:06:35]} ({Less strong is} 22. Bxb6 axb4 23. Qxc4 dxc4 $16) (22. Qxc4 dxc4 23. Bxc4 (23. Bxb6 axb4 24. Bxc4 Rfc8 $16) 23... axb4 24. Bxb6 Rfc8 $16) 22... Qc6 $2 {[%emt 0:09:01]} (22... axb4 23. Nxd5 Qa2) 23. Bd4 {[%emt 0:00:10]} axb4 {[%emt 0:01:04]} 24. Nxd5 {[%emt 0:05:38]} Bc5 {[%emt 0:00:28]} 25. axb4 {[%emt 0:05:44]} Rae8 {[%emt 0:02:48]} (25... Bxd4+ {was called for.} 26. Qxd4 Qd6) 26. bxc5 {[%emt 0:06:15]} ({Don't take} 26. Bxc5 Rxe6 27. Rxe6 Qxe6 28. Bxf8 Bxd5 $18) 26... Rxe6 {[%emt 0:02:27]} 27. Rxe6 {[%emt 0:02:37]} Qxe6 {[%emt 0:01:26]} 28. Nxf6 {[%emt 0:00:29]} gxf6 {[%emt 0:00:25]} 29. Qxh5+ {[%emt 0:00:06]} Kg7 {[%emt 0:00:17]} 30. cxb6 $2 {[%emt 0:01:52]} (30. c6 $18 Bc8 31. Qg5+ Kh7 32. Qh5+ Kg7 33. Qg5+ Kh7 34. Qb5) 30... Rc8 $11 {[%emt 0:02:45] The position is equal.} 31. Qg5+ {[%emt 0:01:20]} Kh7 {[%emt 0:00:16]} 32. Qh5+ {[%emt 0:01:06]} Kg7 {[%emt 0:00:01]} 33. Qg5+ {[%emt 0:01:28]} Kh7 {[%emt 0:00:25]} 34. Qh5+ {[%emt 0:00:27] Weighted Error Value: White=0.32/Black=0.46} 1/2-1/2